Cogmind - Beta 11 X7 --- EXPLORER MODE // 2021.10.01 @ 14:07:03 // Winter2019/RPGLIKE Player: jfk Result: Destroyed by D-53 Grenadier with Mini Grenade Launcher Performance ------------- Evolutions (0) 0 Regions Visited (2) 400 Robots Destroyed (2) 10 Value Destroyed (20) 20 Prototype IDs (0) 0 Alien Tech Used (0) 0 Bonus (0) 0 TOTAL SCORE: 430 Bonus ------- None Cogmind --------- Core Integrity 0/600 Matter 300/300 Energy 124/125 System Corruption 4% Temperature Cool (0) Movement Core (50) Location -10/Mines Parts ------- > --- POWER (1) -------- Light Ion Engine > --- PROPULSION (1) --- (None) > --- UTILITY (1) ------ (None) > --- WEAPON (1) ------- (None) > --- INVENTORY (0) ---- (None) Peak State ------------ > --- POWER ------------ Light Ion Engine > --- PROPULSION ------- Flight Unit > --- UTILITY ---------- (None) > --- WEAPON ----------- Light Assault Rifle > --- INVENTORY -------- (None) [Rating: 3] Favorites ----------- Power Light Ion Engine Engine Light Ion Engine Propulsion Flight Unit Flight Unit Flight Unit Utility None Weapon Light Assault Rifle Ballistic Gun Light Assault Rifle Build | -11 -10 -10 ------- Run | Scr Mat Min Slots Evolved . | . . . Power . | . . . Propulsion . | . . . Utility . | . . . Weapon . | . . . Parts Attached 3 | . . 3 Power 1 | . . 1 Engine 1 | . . 1 Core . | . . . Reactor . | . . . Propulsion 1 | . . 1 Treads . | . . . Leg . | . . . Wheel . | . . . Hover . | . . . Flight 1 | . . 1 Utility . | . . . Device . | . . . Storage . | . . . Processor . | . . . Hackware . | . . . Protection . | . . . Artifact . | . . . Weapon 1 | . . 1 Energy Gun . | . . . Energy Cannon . | . . . Ballistic Gun 1 | . . 1 Ballistic Cannon . | . . . Launcher . | . . . Special Weapon . | . . . Impact Weapon . | . . . Slashing Weapon . | . . . Piercing Weapon . | . . . Special Melee Weapon . | . . . Unidentified Prototypes . | . . . Parts Lost 1 | . . 1 Power . | . . . Propulsion 1 | . . 1 Utility . | . . . Weapon . | . . . Highest Loss Streak 1 | . . 1 Average Slot Usage (%) 42 | . . 53 Engine 14 | . . 18 Flight 14 | . . 18 Ballistic Gun 13 | . . 16 Naked Turns 87 | . 49 38 Heaviest Build 4 | . . 4 Greatest Support 4 | 3 3 4 Greatest Overweight (x) 1 | . . 1 Average Overweight (x) . | . . . Largest Inventory Capacity . | . . . Average Capacity . | . . . Most Carried . | . . . Average Carried . | . . . Final Capacity . | . . . Final Carried . | . . . Class Distribution -------------------- 100% | Hacker-Mutant Dominant Class ---------------- Hacker-Mutant | -10/Materials Hacker-Mutant | -10/Mines Resources | -11 -10 -10 ----------- Run | Scr Mat Min Matter Collected 221 | 130 . 91 Remotely . | . . . Salvage Created 28 | . . 28 Parts 6 | . . 6 Haulers Intercepted . | . . . Recyclers Shooed . | . . . Parts Field Recycled . | . . . Retrieved Matter . | . . . Parts Self-Destructed . | . . . Prevented . | . . . Kills | -11 -10 -10 ------- Run | Scr Mat Min Combat Hostiles Destroyed 2 | . . 2 Melee 1 | . . 1 Guns 1 | . . 1 Classes Destroyed 1 | . . 1 Swarmer 2 | . . 2 Best Kill Streak 2 | . . 2 Combat Bots Only 2 | . . 2 Max Kills in Single Turn 1 | . . 1 Gunslinging . | . . . Exploded . | . . . Melee 1 | . . 1 Uniques/NPCs Destroyed . | . . . Combat | -11 -10 -10 -------- Run | Scr Mat Min Damage Taken 706 | . . 706 Core 651 | . . 651 Absorbed by Shields . | . . . Redirected to Core 194 | . . 194 Core Remaining (%) 100 | 100 . . Volleys Fired 9 | . . 9 Largest 1 | . . 1 Hottest 20 | . . 20 Shots Fired 9 | . . 9 Gun 9 | . . 9 Cannon . | . . . Launcher . | . . . Special . | . . . Kinetic 9 | . . 9 Thermal . | . . . Explosive . | . . . Electromagnetic . | . . . Robot Hit Streak 3 | . . 3 Robot Miss Streak 2 | . . 2 Penetration Max . | . . . Secondary Targets . | . . . Shots Hit Robots 5 | . . 5 Core Hits 5 | . . 5 Critical Kills . | . . . Critical Parts Destroyed . | . . . Critical Strikes . | . . . Melee Attacks . | . . . Impact . | . . . Slashing . | . . . Piercing . | . . . Sneak Attacks . | . . . Combat Hostiles . | . . . Follow-up Attacks . | . . . Damage Inflicted 100 | . . 100 Guns 37 | . . 37 Cannons . | . . . Explosions . | . . . Melee . | . . . Ramming 63 | . . 63 Kinetic 37 | . . 37 Thermal . | . . . Explosive . | . . . Electromagnetic . | . . . Impact . | . . . Slashing . | . . . Piercing . | . . . Highest Corruption 4 | . . 4 Average Corruption 3 | . . 3 Corruption Purged . | . . . Effects 2 | . . 2 Heat Flow Errors 2 | . . 2 Overload Shots . | . . . Overflow Damage . | . . . Projectiles . | . . . Explosions . | . . . Melee . | . . . Knockbacks . | . . . Impact . | . . . Kinetic . | . . . Secondary . | . . . Self-Inflicted Damage 26 | . . 26 Shots . | . . . Rammed 23 | . . 23 Targets Rammed 23 | . . 23 Kicked . | . . . Crushed . | . . . Highest Temperature 253 | . . 253 Average Temperature 111 | . . 111 Received Heat Transfer 57 | . . 57 Siege Activations . | . . . Robots Corrupted . | . . . Combat Hostiles . | . . . Parts Fried . | . . . Impact Corruptions . | . . . Robots Melted . | . . . Combat Hostiles . | . . . Parts Melted . | . . . Heat Transferred . | . . . Parts Sabotaged . | . . . Parts Stolen . | . . . Parts Stripped . | . . . Power Chain Reactions . | . . . Missiles Intercepted . | . . . Alert | -11 -10 -10 ------- Run | Scr Mat Min Peak Influence 99 | . 15 99 Initial 4 | . . 4 Average 34 | . 9 45 Maximum Alert Level . | . . . Low Security (%) 100 | 100 100 100 Level 1 . | . . . Level 2 . | . . . Level 3 . | . . . Level 4 . | . . . Level 5 . | . . . High Security . | . . . Max Security . | . . . Squads Dispatched . | . . . Investigation . | . . . Extermination . | . . . Reinforcement . | . . . Assault . | . . . Garrison . | . . . Intercept . | . . . Construction Impeded . | . . . Haulers Reinforced . | . . . Active Scanning Responses . | . . . Cargo Convoy Interrupts . | . . . Stealth | -11 -10 -10 --------- Run | Scr Mat Min Distress Signals . | . . . Communications Jammed . | . . . Distress Signals . | . . . Times Spotted 20 | . 2 18 Peak Tracking Total 11 | . 2 11 Tactical Retreats 2 | . . 2 Traps | -11 -10 -10 ------- Run | Scr Mat Min Traps Triggered . | . . . Indirectly . | . . . Trap Hack Attempts . | . . . Triggered . | . . . Disarmed . | . . . Reprogrammed . | . . . Reused . | . . . Traps Extracted . | . . . Installed . | . . . Triggered . | . . . Machines | -11 -10 -10 ---------- Run | Scr Mat Min Machines Disabled . | . . . Max in Single Turn . | . . . Machines Sabotaged . | . . . Garrisons Compromised . | . . . Overloaded Fab Kills . | . . . Fab Network Shutdowns . | . . . Hacking | -11 -10 -10 --------- Run | Scr Mat Min Machines Accessed 1 | . 1 . Terminals 1 | . 1 . Fabricators . | . . . Repair Stations . | . . . Recycling Units . | . . . Scanalyzers . | . . . Garrison Access . | . . . Total Hacks 1 | . 1 . Successful 1 | . 1 . Failed . | . . . Catastrophic . | . . . Database Lockouts . | . . . Manual 1 | . 1 . Terminals 1 | . 1 . Fabricators . | . . . Repair Stations . | . . . Recycling Units . | . . . Scanalyzers . | . . . Garrison Access . | . . . Terminal Hacks 1 | . 1 . Branch Access Points 1 | . 1 . Fabricator Hacks . | . . . Repair Station Hacks . | . . . Recycling Unit Hacks . | . . . Scanalyzer . | . . . Garrison Access Hacks . | . . . Unauthorized Hacks . | . . . Terminals . | . . . Fabricators . | . . . Repair Stations . | . . . Recycling Units . | . . . Scanalyzers . | . . . Garrison Access . | . . . Data Cores Recovered . | . . . Used . | . . . Hacking Detections 1 | . 1 . Full Trace Events . | . . . Feedback Events . | . . . Feedback Blocked . | . . . Robot Schematics Acquired . | . . . Robots Built . | . . . Matter . | . . . Time . | . . . Total Robot Build Rating . | . . . Part Schematics Acquired . | . . . Parts Built . | . . . Matter . | . . . Time . | . . . Total Part Build Rating . | . . . Parts Repaired . | . . . Time . | . . . Parts Recycled . | . . . Recycled Matter . | . . . Retrieved Matter . | . . . Retrieved Components . | . . . Parts Scanalyzed . | . . . Part Schematics Acquired . | . . . Parts Damaged . | . . . Bothacking | -11 -10 -10 ------------ Run | Scr Mat Min Used RIF Installer . | . . . Robots Hacked . | . . . Non-combat . | . . . Combat . | . . . Robot Hacks Applied . | . . . Relay Couplers Released . | . . . Robots Rewired . | . . . Allies Hacked . | . . . Hacks Repelled . | . . . Allies | -11 -10 -10 -------- Run | Scr Mat Min Total Allies . | . . . Largest Group . | . . . Highest-Rated Group . | . . . Highest-Rated Ally . | . . . Total Orders . | . . . Ally Attacks . | . . . Total Damage . | . . . Kills . | . . . Allies Corrupted . | . . . Allies Melted . | . . . Intel | -11 -10 -10 ------- Run | Scr Mat Min Robot Analysis Total . | . . . Derelict Logs Recovered . | . . . Drone Launches . | . . . Drone Recoveries . | . . . Exploration | -11 -10 -10 ------------- Run | Scr Mat Min Turns Passed 208 | 9 49 150 Spaces Moved 366 | 18 98 250 Core 147 | 18 98 31 Treads . | . . . Legs . | . . . Wheels . | . . . Hover . | . . . Flight 219 | . . 219 Fastest Speed 40 | 50 50 40 Average Speed 44 | 50 50 41 Slowest Speed 100 | 50 50 100 Overloaded Moves . | . . . Propulsion Burnouts . | . . . Robots Hopped 15 | . . 15 Cave-ins Triggered 1 | . . 1 Exploration Rate (%) 28 | 3 40 43 Regions Visited 2 Branch Regions 1 Pre-discovered Areas . | . . . Known Exits Taken 2 | 1 1 . Unknown Exits Taken . | . . . Scrap Searched . | . . . Spaces Dug . | . . . Terrain Destroyed . | . . . Melee . | . . . Projectile . | . . . AOE . | . . . Terrain Rammed . | . . . Walls Destroyed . | . . . Machines Disabled . | . . . Actions | -11 -10 -10 --------- Run | Scr Mat Min Total 387 | 17 97 273 Wait . | . . . Move 336 | 17 97 222 Hop 12 | . . 12 Pick Up . | . . . Fast Attach 3 | . . 3 Attach . | . . . Detach . | . . . Swap . | . . . Drop 1 | . . 1 Fire 9 | . . 9 Melee . | . . . Ram 23 | . . 23 Kick . | . . . Crush . | . . . Escape Stasis 1 | . . 1 Rewire . | . . . Trap . | . . . Miscellaneous 2 | . . 2 Route ------- -11/Scrapyard -10/Materials (discovered 3 exits: *Mat / *Min x2) -10/Mines (discovered 1 exit: *Mat) History --------- Turn | Location | Event 3 | -11/Scrapyard | Identified exit to Materials 3 | -11/Scrapyard | Discovered exit to Materials (range 15) 10 | -11/Scrapyard | Entered Materials 35 | -10/Materials | Identified exit to Mines 43 | -10/Materials | Identified exit to Materials 43 | -10/Materials | Discovered exit to Materials (range 15) 59 | -10/Materials | Entered Mines 126 | -10/Mines | Assembled infested the area 148 | -10/Mines | Discovered exit to Materials (range 7) 159 | -10/Mines | Core integrity fell below 50% 205 | -10/Mines | Crushed by falling debris 206 | -10/Mines | Core integrity fell below 20% 209 | -10/Mines | Destroyed by D-53 Grenadier with Mini Grenade Launcher Last Messages --------------- 00148_ EXIT=FOUND: MATERIALS 00158_ K-01 Serf collects debris. 00187_ T-07 Excavator is excavating. 00190_ System corrupted: Heat flow error (+270). 00193_ U-05 Engineer builds a Wall. 00196_ The unstable cave ceiling collapses. 00198_ U-05 Engineer lays Concrete. 00198_ U-05 Engineer builds a Wall. 00199_ The unstable cave ceiling collapses. 00199_ U-05 Engineer builds a Wall. 00200_ K-01 Serf collects debris. 00204_ as-25868 destroyed. 00205_ The unstable cave ceiling collapses. 00205_ Crushed by falling debris. 00205_ as-47050 destroyed. 00205_ as-55611 destroyed. 00206_ The unstable cave ceiling collapses. 00207_ Flight Unit destroyed. 00207_ as-82197 destroyed. 00208_ Dropped Lgt. Assault Rifle. Map ----- +----------------------------------------------------+ | | | | | | | | | | | | | | | | | | | | | ??????????????????????????????????????? | | ??##########??????????????????????????? | | ??# """" #??????????????????????????? | | ??# """" ####???????????????##??????? | | ??# """" #?????????????## ??????? | | ??# ## #?????????#### ??????? | | ??# ## ########### ???????? | | ??# ## ## ????????? | | ??# ####### ##????????? | | ??##########???# #????????? | | ???????????????# ######???? | | ????????????#### dd ##??? | | ??####?????## = s #??? | | ??# #????# ##?? | | ??# #??## # # % #?? | | ???# ### @[ #### ###? | | ????# %% ####??# # ## | | ????## * %a ###?????#### # | | ?????## [ %%## ############ % ## | | ??????## %###### ###?# # # | | ???????# ##?????##???# """" # | | ???????# =##???????????? """" # | | ??????## #??????????# """" # | | ????### #??????????# # | | ???## ##?????????# """" # # | | ??## #?????????# """" | | ??# ##?????????? """" # # # | | ??# #????????? #### | | ??# #???????# """" #??# | | ??## #???????? """" #??#### | | ???### ##??????????"""" #?????? | | ?????## #???????????? ??????? | | ??????## #????????????######??????? | | ???????## #????????????????????????? | | ????????### #????????????????????????? | | ??????????? ????????????????????????? | | ??????????? #????????????????????????? | | ??????????? ????????????????????????? | | ??????????? ????????????????????????? | | ??????????? ???????????????????????? | +----------------------------------------------------+ Best States ------------- Heat Dissipation 25 Energy Generation 10 Energy Capacity 125 Matter Stores 300 Matter Capacity 300 Sight Range 16 Terrain Scan Density 10 Resistance: KI 35 Resistance: TH 35 Resistance: EX 35 Resistance: EM 35 Resistance: I 35 Resistance: S 35 Resistance: P 35 Evasion (%) 62 Offensive Hacking 20 Item Schematics ----------------- None Robot Schematics ------------------ None Fabricated ------------ Nothing Alien Tech Used ----------------- None Achievements -------------- None Challenges ------------ None RPGLIKE | -11 -10 -10 --------- Run | Scr Mat Min Levels Raised . | . . . XP Earned 7050 | 6000 . 1050 Upgrades . | . . . Protomatter Created 14 | . . 14 Integrity Restored 42 | . . 42 Core 42 | . . 42 Protomatter Decayed . | . . . Game ------ Seed PointStealthSlayer Manual? 0 Play Time 00:05:55 Cumulative 268.4 hours Start 2021.10.01 @ 14:03:26 End 2021.10.01 @ 14:07:03 Sessions 1 Manual Loads 0 Difficulty Explorer Special Mode Winter2019/RPGLIKE Game No. 78 Rogue 0 Adventurer 0 Explorer 78 Win Type - Total 25 Types 14/3/1/1/1/2/1/2/0 Lore% 69 Gallery% 84 Achievement% 78 Wizard Run 0 Options --------- ASCII 1 Keyboard 0 Movement Arrows Keybinds 0 Fullscreen 2 Font 18/SmallcapsGlow Map View 76x50 Tactical HUD 1 Map Filters NONE Filters NONE Steam 1 RUN: 08183234-b757-4203-8867-03d8d1a58ed9